Cogmind - Beta 15 @@@ ROGUE MODE // 2025.07.01 @ 22:18:53 Player: Rudrot Result: Destroyed by 6Q-4CB(j) with Overtuned Pulse Rifle Performance ------------- Evolutions (0) 0 Regions Visited (3) 600 Robots Destroyed (19) 95 Value Destroyed (417) 417 Prototype IDs (0) 0 Alien Tech Used (0) 0 Bonus (800) 800 TOTAL SCORE: 1912 Bonus ------- Registered with UFD 300 Met Optimus in HQ 500 Cogmind --------- Core Integrity 0/250 Matter 272/300 Energy 140/140 System Corruption 1% Temperature Cool (70) Movement Rolling (95) Ox1 Location -9/Scraptown Parts ------- > --- POWER (1) -------- Light Deuterium Engine > --- PROPULSION (2) --- Wheel Wheel > --- UTILITY (2) ------ Medium Storage Unit Visual Processing Unit > --- WEAPON (2) ------- Assault Rifle Coil Gun > --- INVENTORY (10) --- Light Deuterium Engine Overtuned Huge Scrapsphere Makeshift Microdissipator Network Targeting Computer Hardlight Generator Overtuned Coil Gun CPS Tube (2) DRS Beacon (Ready) Botcube Peak State ------------ > --- POWER ------------ Light Deuterium Engine > --- PROPULSION ------- Wheel Wheel > --- UTILITY ---------- Medium Storage Unit Visual Processing Unit > --- WEAPON ----------- Assault Rifle Coil Gun > --- INVENTORY -------- Light Deuterium Engine Overtuned Huge Scrapsphere Makeshift Microdissipator Network Targeting Computer Hardlight Generator Overtuned Coil Gun DRS Beacon Botcube [Rating: 18] Favorites ----------- Power Ion Engine Engine Ion Engine Propulsion Wheel Wheel Wheel Utility Visual Processing Unit Storage Small Storage Unit Processor Visual Processing Unit Weapon Assault Rifle Ballistic Gun Assault Rifle Special Weapon CPS Tube Build | -11 -10 -10 -9 ------- Run | Yrd Mat Sub Scr Slots Evolved . | . . . . Power . | . . . . Propulsion . | . . . . Utility . | . . . . Weapon . | . . . . Parts Attached 14 | 6 3 . 5 Power 3 | 1 . . 2 Engine 3 | 1 . . 2 Core . | . . . . Reactor . | . . . . Propulsion 4 | 2 2 . . Treads . | . . . . Leg . | . . . . Wheel 4 | 2 2 . . Hover . | . . . . Flight . | . . . . Utility 3 | 1 1 . 1 Device . | . . . . Storage 2 | 1 . . 1 Processor 1 | . 1 . . Hackware . | . . . . Protection . | . . . . Artifact . | . . . . Weapon 4 | 2 . . 2 Energy Gun . | . . . . Energy Cannon . | . . . . Ballistic Gun 3 | 2 . . 1 Ballistic Cannon . | . . . . Launcher . | . . . . Special Weapon 1 | . . . 1 Impact Weapon . | . . . . Slashing Weapon . | . . . . Piercing Weapon . | . . . . Special Melee Weapon . | . . . . Unidentified Prototypes . | . . . . Parts Lost 1 | . 1 . . Power . | . . . . Propulsion 1 | . 1 . . Utility . | . . . . Weapon . | . . . . Highest Loss Streak 1 | . 1 . . To Critical Strikes . | . . . . Average Backups 6 | . 4 7 7 Power 1 | . 1 2 1 Propulsion . | . . . . Utility 1 | . . 2 2 Weapon 3 | . 2 3 3 Tool/Special . | . . . . Unused Backups 14 | . . . 14 Power 2 | . . . 2 Propulsion 1 | . . . 1 Utility 4 | . . . 4 Weapon 5 | . . . 5 Tool/Special 2 | . . . 2 Average Slot Usage (%) 97 | . 90 100 99 Engine 13 | . 14 14 13 Wheel 26 | . 21 28 28 Storage 14 | . 14 14 14 Processor 13 | . 11 14 14 Ballistic Gun 23 | . 28 28 21 Special Weapon 4 | . . . 6 Peak Build Rating 18 | 6 8 8 18 Average Rating 9 | 5 7 8 10 On Entrance 5 | . 6 8 8 Naked Turns . | . . . . Heaviest Build 22 | 12 12 12 22 Greatest Support 26 | 26 26 20 20 Greatest Overweight (x) 2 | 2 1 . 1 Average Overweight (x) . | . . . . Largest Inventory Capacity 10 | 8 8 8 10 Average Capacity 8 | 7 8 8 9 Most Carried 10 | 2 7 7 10 Average Carried 7 | . 4 7 8 Final Capacity 10 | 8 8 8 10 Final Carried 10 | 2 7 7 10 Class Distribution -------------------- 51% | Scavenger-Mutant 48% | Mutant Dominant Class ---------------- Mutant | -10/Materials Mutant | -10/Subcaves Scavenger-Mutant | -9/Scraptown Resources | -11 -10 -10 -9 ----------- Run | Yrd Mat Sub Scr Matter Collected 624 | 209 298 12 105 Remotely . | . . . . Salvage Created 577 | . 346 . 231 Parts 38 | . 29 . 9 Haulers Intercepted . | . . . . Recyclers Shooed . | . . . . Parts Field Recycled . | . . . . Retrieved Matter . | . . . . Parts Self-Destructed . | . . . . Prevented . | . . . . Kills | -11 -10 -10 -9 ------- Run | Yrd Mat Sub Scr Combat Hostiles Destroyed 16 | . 12 . 4 Guns 16 | . 12 . 4 Classes Destroyed 8 | . 5 . 3 Worker 1 | . 1 . . Builder 1 | . 1 . . Watcher 1 | . 1 . . Swarmer 8 | . 8 . . Grunt 4 | . 4 . . Explorer 1 | . . . 1 Guru 1 | . . . 1 Scrapper 1 | . . . 1 Thug 1 | . . . 1 Best Kill Streak 7 | . 7 . 2 Combat Bots Only 3 | . 3 . 2 Max Kills in Single Turn 1 | . 1 . 1 Gunslinging . | . . . . Exploded . | . . . . Melee . | . . . . Uniques/NPCs Destroyed . | . . . . Combat | -11 -10 -10 -9 -------- Run | Yrd Mat Sub Scr Hostile Shots Fired 75 | . 56 . 19 Missed 25 | . 19 . 6 Hits 50 | . 37 . 13 Projectile 50 | . 37 . 13 Critical Strikes 1 | . . . 1 Damage Taken 562 | . 329 . 233 Core 262 | . 70 . 192 Absorbed by Shields . | . . . . Regen/Repaired (Parts) 200 | . 27 . 173 Core Remaining (%) 100 | 100 . . . Volleys Fired 52 | . 39 . 13 Largest 2 | . 2 . 2 Hottest 50 | . 40 . 50 Shots Fired 104 | . 78 . 26 Gun 102 | . 78 . 24 Cannon . | . . . . Launcher . | . . . . Special 2 | . . . 2 Kinetic 102 | . 78 . 24 Thermal . | . . . . Explosive . | . . . . Electromagnetic . | . . . . Robot Hit Streak 10 | . 4 . 10 Robot Miss Streak 4 | . 4 . 3 Penetration Max . | . . . . Secondary Targets 2 | . 2 . . Max Gunslinging Chain 1 | . 1 . . Shots Hit Robots 53 | . 38 . 15 Core Hits 24 | . 18 . 6 Critical Kills . | . . . . Critical Parts Destroyed . | . . . . Critical Strikes . | . . . . Melee Attacks . | . . . . Impact . | . . . . Slashing . | . . . . Piercing . | . . . . Sneak Attacks . | . . . . Combat Hostiles . | . . . . Follow-up Attacks . | . . . . Damage Inflicted 767 | . 533 . 234 Guns 767 | . 533 . 234 Cannons . | . . . . Explosions . | . . . . Melee . | . . . . Ramming . | . . . . Kinetic 767 | . 533 . 234 Thermal . | . . . . Explosive . | . . . . Electromagnetic . | . . . . Impact . | . . . . Slashing . | . . . . Piercing . | . . . . Highest Corruption 1 | . . . 1 Average Corruption 1 | . . . 1 Corruption Purged . | . . . . Corruption Blocked . | . . . . Overload Shots . | . . . . Overflow Damage . | . . . . Projectiles . | . . . . Explosions . | . . . . Melee . | . . . . Knockbacks . | . . . . Impact . | . . . . Kinetic . | . . . . Secondary . | . . . . Self-Inflicted Damage . | . . . . Shots . | . . . . Rammed . | . . . . Targets Rammed . | . . . . Kicked . | . . . . Crushed . | . . . . Highest Temperature 61 | . . . 61 Average Temperature 34 | . . . 34 Received Heat Transfer 190 | . 60 . 130 Siege Activations . | . . . . Martial Activations . | . . . . Shielding Activations . | . . . . Robots Disrupted . | . . . . Combat Hostiles . | . . . . Robots Corrupted . | . . . . Combat Hostiles . | . . . . Parts Fried . | . . . . Impact Corruptions . | . . . . Robots Melted . | . . . . Combat Hostiles . | . . . . Parts Melted 1 | . . . 1 Heat Transferred . | . . . . Parts Sabotaged . | . . . . Parts Stolen . | . . . . Parts Stripped . | . . . . Power Chain Reactions . | . . . . Alert | -11 -10 -10 -9 ------- Run | Yrd Mat Sub Scr Maximum Alert Level . | . . . . Low Security (%) 100 | 100 100 . . Level 1 . | . . . . Level 2 . | . . . . Level 3 . | . . . . Level 4 . | . . . . Level 5 . | . . . . High Security . | . . . . Max Security . | . . . . Peak Influence 134 | . 134 . . Initial . | . . . . Average 69 | . 75 . . Influence Increases 362 | . 362 . . Destroy 0b10 Robot/C 240 | . 240 . . Destroy 0b10 Robot/NC 15 | . 15 . . Destroy Leader 42 | . 42 . . Successful Hack 3 | . 3 . . Destroy Structure 2 | . 2 . . Lose Combat Pursuer 60 | . 60 . . Influence Decreases 362 | . 310 52 . Entered New Map 26 | . . 26 . Time Decay 326 | . 300 26 . Lost Part 10 | . 10 . . Squads Dispatched 3 | . 3 . . Investigation 2 | . 2 . . Extermination . | . . . . Reinforcement 1 | . 1 . . Assault . | . . . . Garrison . | . . . . Intercept . | . . . . Searches Triggered . | . . . . Construction Impeded . | . . . . Haulers Reinforced . | . . . . Active Scanning Responses . | . . . . Cargo Convoy Interrupts . | . . . . Stealth | -11 -10 -10 -9 --------- Run | Yrd Mat Sub Scr Distress Signals 4 | . 4 . . Communications Jammed . | . . . . Distress Signals . | . . . . Times Spotted 32 | . 26 . 6 Peak Tracking Total 6 | . 6 . 2 Tactical Retreats 2 | . 2 . . Traps | -11 -10 -10 -9 ------- Run | Yrd Mat Sub Scr Traps Triggered 1 | . 1 . . Indirectly . | . . . . Trap Hack Attempts . | . . . . Triggered . | . . . . Disarmed . | . . . . Reprogrammed . | . . . . Reused . | . . . . Traps Extracted . | . . . . Installed . | . . . . Triggered . | . . . . Machines | -11 -10 -10 -9 ---------- Run | Yrd Mat Sub Scr Machines Disabled 1 | . . . 1 Max in Single Turn 1 | . . . 1 Machines Repaired . | . . . . Machines Dismantled . | . . . . Machines Sabotaged . | . . . . Overloaded Fab Kills . | . . . . Hacking | -11 -10 -10 -9 --------- Run | Yrd Mat Sub Scr Machines Accessed 12 | . 4 . 8 Terminals 3 | . 3 . . Fabricators . | . . . . Repair Stations 1 | . 1 . . Recycling Units . | . . . . Scanalyzers . | . . . . Garrison Access . | . . . . Total Hacks 64 | . 8 . 56 Successful 59 | . 3 . 56 Failed 5 | . 5 . . Catastrophic 1 | . 1 . . Database Lockouts . | . . . . Manual 2 | . . . 2 Terminals 4 | . 4 . . Fabricators . | . . . . Repair Stations 4 | . 4 . . Recycling Units . | . . . . Scanalyzers . | . . . . Garrison Access . | . . . . Terminal Hacks 57 | . 1 . 56 Record 50 | . 1 . 49 Robot Analysis 7 | . . . 7 Fabricator Hacks . | . . . . Repair Station Hacks 2 | . 2 . . Scan Component 1 | . 1 . . Repair 1 | . 1 . . Recycling Unit Hacks . | . . . . Scanalyzer . | . . . . Garrison Access Hacks . | . . . . Unauthorized Hacks . | . . . . Terminals . | . . . . Fabricators . | . . . . Repair Stations . | . . . . Recycling Units . | . . . . Scanalyzers . | . . . . Garrison Access . | . . . . Data Cores Recovered . | . . . . Used . | . . . . Hacking Detections 4 | . 4 . . Full Trace Events 1 | . 1 . . Feedback Events . | . . . . Feedback Blocked . | . . . . Robot Schematics Acquired . | . . . . Robots Built . | . . . . Authchips . | . . . . Time . | . . . . Total Robot Build Rating . | . . . . Part Schematics Acquired . | . . . . Parts Built . | . . . . Authchips . | . . . . Time . | . . . . Total Part Build Rating . | . . . . Parts Repaired 1 | . 1 . . Time 26 | . 26 . . Parts Recycled . | . . . . Recycled Matter . | . . . . Retrieved Matter . | . . . . Retrieved Components . | . . . . Parts Scanalyzed . | . . . . Part Schematics Acquired . | . . . . Parts Damaged . | . . . . Bothacking | -11 -10 -10 -9 ------------ Run | Yrd Mat Sub Scr Used RIF Installer . | . . . . Robots Hacked . | . . . . Non-combat . | . . . . Combat . | . . . . Robot Hacks Applied . | . . . . Relay Couplers Released . | . . . . Fabnet Peak Effective % . | . . . . Robots Rewired . | . . . . Allies Hacked . | . . . . Hacks Repelled . | . . . . Allies | -11 -10 -10 -9 -------- Run | Yrd Mat Sub Scr Total Allies . | . . . . Largest Group . | . . . . Highest-Rated Group . | . . . . Highest-Rated Ally . | . . . . Total Orders . | . . . . Ally Attacks . | . . . . Total Damage . | . . . . Kills . | . . . . Allies Corrupted . | . . . . Allies Melted 2 | . . . 2 Intel | -11 -10 -10 -9 ------- Run | Yrd Mat Sub Scr Active Infowar (turns) 2842 | . 580 147 2115 Optics 2842 | . 580 147 2115 Robot Analysis Total 7 | . . . 7 Derelict Logs Recovered . | . . . . Drone Launches . | . . . . Drone Recoveries . | . . . . Exploration | -11 -10 -10 -9 ------------- Run | Yrd Mat Sub Scr Turns Passed 3020 | 66 692 147 2115 Spaces Moved 3241 | 62 521 130 2528 Core 5 | 5 . . . Treads . | . . . . Legs . | . . . . Wheels 3236 | 57 521 130 2528 Hover . | . . . . Flight . | . . . . Fastest Speed 50 | 50 80 80 80 Average Speed 82 | 88 89 80 80 Slowest Speed 150 | 150 100 80 95 Overloaded Moves . | . . . . Propulsion Burnouts . | . . . . Robots Hopped . | . . . . Potential Cave-ins . | . . . . Cave-ins Triggered . | . . . . Exploration Rate (%) 46 | 4 79 12 92 Regions Visited 3 Branch Regions 2 Pre-discovered Areas . | . . . . Known Exits Taken . | . . . . Unknown Exits Taken 3 | 1 1 1 . Scrap Searched 3 | . . . 3 Spaces Dug . | . . . . Terrain Destroyed . | . . . . Melee . | . . . . Projectile . | . . . . AOE . | . . . . Terrain Rammed . | . . . . Walls Destroyed . | . . . . Machines Disabled . | . . . . Actions | -11 -10 -10 -9 --------- Run | Yrd Mat Sub Scr Total 3486 | 69 666 172 2579 Wait 144 | . 98 43 3 Move 3238 | 61 520 129 2528 Hop . | . . . . Pick Up 24 | 2 6 . 16 Fast Attach 8 | 6 2 . . Attach 5 | . 1 . 4 Detach 1 | . . . 1 Swap 1 | . . . 1 Drop 13 | . . . 13 Fire 52 | . 39 . 13 Melee . | . . . . Ram . | . . . . Kick . | . . . . Crush . | . . . . Escape Stasis . | . . . . Rewire . | . . . . Trap . | . . . . Miscellaneous . | . . . . Route ------- -11/Scrapyard -10/Materials (discovered 4 exits: [*Mat x2] / [*Min] / [*Sub]) -10/Subcaves -9/Scraptown (discovered 2 exits: [*Fac x2]) History --------- Turn | Location | Event 29 | -11/Scrapyard | Discovered new exit (range 13) 67 | -11/Scrapyard | Entered Materials 265 | -10/Materials | Repaired Com. Wheel? 302 | -10/Materials | Build established: Mutant 419 | -10/Materials | Discovered new exit (range 8) 568 | -10/Materials | Discovered new exit (range 17) 594 | -10/Materials | Discovered new exit (range 13) 754 | -10/Materials | Discovered new exit (range 8) 759 | -10/Materials | Entered Subcaves 760 | -10/Subcaves | Approached by a straggling Scientist 898 | -10/Subcaves | Scientist uncovered a shortcut to Scraptown 906 | -10/Subcaves | Entered Scraptown 1035 | -9/Scraptown | Visited TADAMA 1068 | -9/Scraptown | Visited Shadow of the Wyrm 1098 | -9/Scraptown | Visited UFD Registry 1098 | -9/Scraptown | Registered with UFD as "Alphaspreader" 1137 | -9/Scraptown | Visited Awakened 1176 | -9/Scraptown | Visited Assassins FH 1228 | -9/Scraptown | Discovered new exit (range 13) 1267 | -9/Scraptown | Received an X-ray algorithm 1399 | -9/Scraptown | Ran an X-ray algorithm 1399 | -9/Scraptown | Ran an X-ray algorithm 1703 | -9/Scraptown | Visited Cave Peace 1734 | -9/Scraptown | Visited CR-KLE's Repair Center 1740 | -9/Scraptown | CR-KLE repaired 6 parts 1778 | -9/Scraptown | Build established: Scavenger-Mutant 2047 | -9/Scraptown | Visited Fellowship of the Rings 2349 | -9/Scraptown | Visited Analyses Database 2385 | -9/Scraptown | Visited Modified Component R&D 2453 | -9/Scraptown | Visited Botcube Research 2466 | -9/Scraptown | Found Botcube 2485 | -9/Scraptown | Visited Scrap Suit Storage 2535 | -9/Scraptown | Discovered new exit (range 3) 2612 | -9/Scraptown | Visited Cartography Club 2669 | -9/Scraptown | Visited Derelict Rescue Squad 2683 | -9/Scraptown | Found DRS Beacon 2719 | -9/Scraptown | Met Optimus 2719 | -9/Scraptown | Accepted into 0bPrime 2813 | -9/Scraptown | Civil war broke out across Scraptown 2958 | -9/Scraptown | Optimus destroyed in the chaos of civil war 2994 | -9/Scraptown | Core integrity fell below 50% 3017 | -9/Scraptown | Core integrity fell below 20% 3021 | -9/Scraptown | Destroyed by 6Q-4CB(j) with Overtuned Pulse Rifle Last Messages --------------- L2-24U(j) components. 02846_ L2-24U(j) destroyed. 02854_ Supplies damaged. 02854_ Slug penetrates EV-5OK(p). 02860_ EV-5OK(p) destroyed. 02867_ Acquired 53 matter. 02878_ Acquired 2 matter. 02881_ Dropped Ion Engine. 02883_ Acquired Lgt. Deuterium Engine. 02886_ Acquired 10 matter. 02896_ Acquired CPS Tube. 02958_ ANNOUNCEMENT: The traitor Optimus has been dealt with. Put down any remaining collaborators. 02993_ Slug penetrates SV-4Z1(g). 02993_ SV-4Z1(g) destroyed. 02997_ Acquired 7 matter. 03013_ Slug penetrates 6Q-4CB(j). 03015_ Critical hit (Burn: +50). 03016_ Slug penetrates Wall. Map ----- +----------------------------------------------------+ | """"""""""""""""""""" "#?" " "" "????????????? | | # ################"" "#?? """""?????????????? | | ##????????#"" "##############????????? | | X"#????????#"" "## """"""""#????????? | | " "" ##????????#"" "## " " " "#????????? | | "" X"#??????###"" "## &"#????????? | | " ######### #"" "## &"#????????? | | "" * &"#????????? | | "" ![="## ""#????????? | | " ######### #"" *[*"## " " " "#????????? | | "" ""#??????###"" *"## """"""""#????????? | | " "" ##????????#"" "##############????????? | | X"#????????#"" "#?????""??????????????? | | ##????????#"" "#????""""#????????????? | | # ######?????#####"" = "#?? ""#????????????? | | """"""??????""""""""" =%!"## ""#????????????? | | """""""""""""""""" "" !* ""#????????????? | | / j"## "#????????????? | | = "#?? ""#????????????? | | !% #??? """"#????????????? | | ! ##???##???????????????? | | #????????????????????? | | """"" """"""""""" """""" ##????????????????????? | | ##### ##??####### ###### #?????????????????????? | | ???????????????"""?????# #?????????????????????? | | ??????????????? ??????# @ #?????????????????????? | | ?????????????? ????????# #?????????????????????? | | ???????????????????????# #?????????????????????? | | ???????????????????????# ![#?????????????????????? | | ???????????????????????# [=############??????????? | | ???????????????????????# ][%==! #??????????? | | ???????????????????????#===!]* ##??????????? | | ???????????????????????#%=%!!! #??????????? | | ???????????????????????#[=!= #??????????? | | ???????????????????????#!!= #??????????? | | ???????????????????????# #;##########??????????? | | ########################% #####?????????????????? | | """##"""##"""##"""##"|"#! """"#?????????????????? | | ""##" "##"""##" ##" #%= "" "#?????????????????? | | !%[ [*%== [!! "#?????????????????? | | * !!! " "#?????????????????? | | = """"#?????????????????? | | """##"" ##"|"##!! ##""|## ######?????????????????? | | """##"""##"""##"""##"""####??????????????????????? | | ########################?????????????????????????? | | ?????????????????????????????????????????????????? | | ?????????????????????????????????????????????????? | | ?????????????????????????????????????????????????? | | ?????????????????????????????????????????????????? | | ?????????????????????????????????????????????????? | +----------------------------------------------------+ Best States ------------- Heat Dissipation 25 Energy Generation 14 Energy Capacity 250 Matter Stores 300 Matter Capacity 300 Sight Range 18 Terrain Scan Density 10 Evasion (%) 44 Item Schematics ----------------- None Robot Schematics ------------------ None Fabricated ------------ Nothing Repaired ---------- Com. Wheel | 10% | -10/Materials Alien Tech Used ----------------- None Achievements -------------- Armchair Analyst Challenges ------------ None Game ------ Seed AntimissilePersonalArmor Manual? 0 Play Time 01:03:26 Cumulative 24.7 hours Start 2025.07.01 @ 16:39:49 End 2025.07.01 @ 22:18:53 Sessions 1 Manual Loads 0 Difficulty Rogue Special Mode None Game No. 18 Rogue 18 Adventurer 0 Explorer 0 Win Type - Total 0 Types 0/0/0/0/0/0/0/0/0/0 Lore% 15 Gallery% 12 Achievement% 16 Wizard Run 0 Options --------- Layout 1 ASCII 0 Keyboard 1 Movement Numpad Keybinds 0 Fullscreen 2 Font 24/Cog Map View 50x35 Zoom Use 0% Tactical HUD 1 Map Filters NONE Filters NONE Steam 1 RUN: b446aeda-4f19-4636-b4bf-add2ae3c44ab